Cogmind - Beta 17.1 @@@ ROGUE MODE // 2026.09.17 @ 19:36:51 Player: Kite Result: Destroyed by CS-PEK(R) with Subdweller Beam Cannon Performance ------------- Evolutions (0) 0 Regions Visited (2) 400 Robots Destroyed (43) 215 Value Destroyed (855) 855 Prototype IDs (1) 20 Alien Tech Used (0) 0 Bonus (-134) -134 TOTAL SCORE: 1356 Bonus ------- Friendly Fire -134 Cogmind --------- Core Integrity 0/250 Matter 79/300 Energy 100/100 System Corruption 0% Temperature Cool (9) Movement Treading (320) Ox2 Location -10/Subcaves Parts ------- > --- POWER (1) -------- (None) > --- PROPULSION (2) --- Light Treads Light Treads > --- UTILITY (2) ------ Huge Storage Unit > --- WEAPON (2) ------- Grenade Launcher Grenade Launcher > --- INVENTORY (25) --- Heavy Ion Engine Subdweller Power Source Light Treads Improved Treads Improved Treads Improved Treads Improved Treads Wheel Wheel Subdweller Monowheel Subdweller Monowheel Heat Sink High-capacity Storage Unit Medium Matter Pod (100) Scrap Shield EM Pulse Gun EM Pulse Gun Grenade Launcher Hammer Heavy Hammer Heavy Hammer Heavy Hammer Heavy Hammer Peak State ------------ > --- POWER ------------ Heavy Ion Engine > --- PROPULSION ------- Light Treads Light Treads > --- UTILITY ---------- Heat Sink Huge Storage Unit > --- WEAPON ----------- Subdweller Shrapnel Launcher Heavy Hammer > --- INVENTORY -------- Heavy Ion Engine Light Treads Improved Treads Improved Treads Improved Treads Improved Treads Wheel Wheel Heat Sink High-capacity Storage Unit Medium Matter Pod Scrap Shield EM Pulse Gun EM Pulse Gun EM Pulse Gun Grenade Launcher Grenade Launcher Grenade Launcher Hammer Heavy Hammer Heavy Hammer Heavy Hammer [Rating: 14] Favorites ----------- Power Heavy Ion Engine Engine Heavy Ion Engine Propulsion Light Treads Treads Light Treads Wheel Wheel Utility Heat Sink Device Heat Sink Storage Huge Storage Unit Weapon Medium Laser Energy Gun Medium Laser Ballistic Gun Light Assault Rifle Launcher Subdweller Shrapnel Launcher Impact Weapon Heavy Hammer Build | -11 -10 -10 ------- Run | Yrd Mat Sub Slots Evolved . | . . . Power . | . . . Propulsion . | . . . Utility . | . . . Weapon . | . . . Parts Attached 28 | 6 16 6 Power 2 | 1 1 . Engine 2 | 1 1 . Core . | . . . Reactor . | . . . Propulsion 5 | 2 2 1 Treads 3 | 2 . 1 Leg . | . . . Wheel 2 | . 2 . Hover . | . . . Flight . | . . . Utility 6 | 1 5 . Device 3 | . 3 . Storage 3 | 1 2 . Processor . | . . . Hackware . | . . . Protection . | . . . Artifact . | . . . Weapon 15 | 2 8 5 Energy Gun 7 | . 6 1 Energy Cannon . | . . . Ballistic Gun 2 | 2 . . Ballistic Cannon . | . . . Launcher 4 | . 1 3 Special Weapon . | . . . Impact Weapon 2 | . 1 1 Slashing Weapon . | . . . Piercing Weapon . | . . . Special Melee Weapon . | . . . Unidentified Prototypes 1 | . 1 . Parts Lost 8 | . 2 6 Power 2 | . 1 1 Propulsion 1 | . . 1 Utility 1 | . . 1 Weapon 4 | . 1 3 Highest Loss Streak 2 | . 1 2 To Critical Strikes . | . . . Average Backups 17 | . 12 22 Power 1 | . 1 1 Propulsion 5 | . 4 7 Utility 2 | . 1 4 Weapon 7 | . 5 9 Tool/Special . | . . . Unused Backups 30 | . 9 21 Power 4 | . 2 2 Propulsion 10 | . . 10 Utility 5 | . 2 3 Weapon 11 | . 5 6 Tool/Special . | . . . Average Slot Usage (%) 96 | . 97 96 Engine 13 | . 13 12 Treads 16 | . 14 18 Wheel 11 | . 13 9 Device 11 | . 11 12 Storage 14 | . 14 14 Energy Gun 17 | . 26 5 Launcher 6 | . . 14 Impact Weapon 3 | . . 6 Peak Build Rating 14 | 6 12 14 Average Rating 10 | 4 8 12 On Entrance 6 | . 6 12 Avg Prop Armor Cover (%) 13 | . 13 . Naked Turns . | . . . Heaviest Build 100 | 12 93 100 Greatest Support 40 | 40 40 40 Greatest Overweight (x) 29 | 1 29 3 Average Overweight (x) 2 | . 2 2 Largest Inventory Capacity 25 | 8 25 25 Average Capacity 20 | 6 17 25 Most Carried 25 | 1 25 25 Average Carried 17 | . 13 23 Final Capacity 25 | 8 25 25 Final Carried 25 | 1 25 24 Class Distribution -------------------- 100% | Mutant Dominant Class ---------------- Mutant | -10/Materials Mutant | -10/Subcaves Resources | -11 -10 -10 ----------- Run | Yrd Mat Sub Matter Collected 825 | 175 441 209 Remotely . | . . . Salvage Created 1106 | . 831 275 Parts 61 | . 43 18 Haulers Intercepted 2 | . 2 . Recyclers Shooed 2 | . 2 . Parts Field Recycled . | . . . Retrieved Matter . | . . . Parts Self-Destructed 7 | . . 7 Prevented . | . . . Parts Restored . | . . . Kills | -11 -10 -10 ------- Run | Yrd Mat Sub Combat Hostiles Destroyed 28 | . 14 14 Guns 10 | . 10 . AOE 17 | . 3 14 Classes Destroyed 10 | . 8 2 Worker 3 | . 3 . Builder 1 | . 1 . Hauler 2 | . 2 . Recycler 4 | . 4 . Mechanic 1 | . 1 . Turret 2 | . . 2 Watcher 1 | . 1 . Swarmer 12 | . 9 3 Grunt 5 | . 5 . Subdweller 11 | . . 11 Thug 1 | . . 1 Best Kill Streak 6 | . 5 6 Combat Bots Only 6 | . 4 6 Max Kills in Single Turn 3 | . 2 3 Gunslinging 1 | . 1 . Exploded 3 | . 2 3 Melee . | . . . Uniques/NPCs Destroyed . | . . . Combat | -11 -10 -10 -------- Run | Yrd Mat Sub Hostile Shots Fired 109 | . 56 53 Missed 37 | . 15 22 Hits 72 | . 41 31 Projectile 72 | . 41 31 AOE 5 | . . 5 Critical Strikes 1 | . 1 . Damage Taken 1287 | . 401 886 Core 262 | . 83 179 Absorbed by Shields . | . . . Core Remaining (%) 100 | 100 . . Volleys Fired 112 | . 80 32 Largest 2 | . 2 2 Hottest 100 | . 100 80 Shots Fired 191 | . 158 33 Gun 159 | . 156 3 Cannon . | . . . Launcher 32 | . 2 30 Special . | . . . Kinetic 8 | . . 8 Thermal 128 | . 128 . Explosive 24 | . 2 22 Electromagnetic 31 | . 28 3 Robot Hit Streak 14 | . 14 14 Robot Miss Streak 5 | . 5 1 Penetration Max . | . . . Secondary Targets 2 | . 2 . Max Gunslinging Chain 1 | . 1 . Shots Hit Robots 116 | . 97 19 Core Hits 73 | . 37 36 Critical Kills . | . . . Critical Parts Destroyed . | . . . Critical Strikes 13 | . 13 . Burn 12 | . 12 . Corrupt 1 | . 1 . Melee Attacks 15 | . 1 14 Impact 15 | . 1 14 Slashing . | . . . Piercing . | . . . Sneak Attacks . | . . . Combat Hostiles . | . . . Follow-up Attacks . | . . . Damage Inflicted 3793 | . 1375 2418 Guns 1256 | . 1235 21 Cannons . | . . . Explosions 2521 | . 124 2397 Melee 16 | . 16 . Ramming . | . . . Kinetic 472 | . . 472 Thermal 1164 | . 1164 . Explosive 2008 | . 83 1925 Electromagnetic 133 | . 112 21 Impact 16 | . 16 . Slashing . | . . . Piercing . | . . . Highest Corruption . | . . . Average Corruption . | . . . Corruption Purged . | . . . Corruption Blocked . | . . . Overload Shots . | . . . Overflow Damage 41 | . . 41 Projectiles . | . . . Explosions 41 | . . 41 Melee . | . . . Knockbacks . | . . . Impact . | . . . Kinetic . | . . . Secondary . | . . . Self-Inflicted Damage 135 | . 22 113 Shots 4 | . 1 3 Rammed . | . . . Targets Rammed . | . . . Kicked . | . . . Crushed . | . . . Highest Temperature 270 | . 270 . Average Temperature 45 | . 45 . Received Heat Transfer 201 | . 96 105 Siege Activations . | . . . Martial Activations . | . . . Shielding Activations . | . . . Robots Disrupted . | . . . Combat Hostiles . | . . . Robots Corrupted . | . . . Combat Hostiles . | . . . Parts Fried 1 | . 1 . Impact Corruptions . | . . . Robots Melted 2 | . 2 . Combat Hostiles 1 | . 1 . Parts Melted 14 | . 14 . Heat Transferred 4231 | . 4231 . Parts Sabotaged . | . . . Parts Stolen . | . . . Parts Stripped . | . . . Power Chain Reactions 1 | . 1 . Alert | -11 -10 -10 ------- Run | Yrd Mat Sub Maximum Alert Level . | . . . Low Security (%) 100 | 100 100 . Level 1 . | . . . Level 2 . | . . . Level 3 . | . . . Level 4 . | . . . Level 5 . | . . . High Security . | . . . Max Security . | . . . Peak Influence 168 | . 168 . Initial . | . . . Average 69 | . 71 . Influence Increases 691 | . 471 220 Destroy 0b10 Robot/C 380 | . 280 100 Destroy 0b10 Robot/NC 60 | . 60 . Destroy Leader 56 | . 56 . Successful Hack 18 | . 18 . Destroy Structure 12 | . 12 . Lose Combat Pursuer 165 | . 45 120 Influence Decreases 533 | . 459 74 Entered New Map 7 | . . 7 Time Decay 476 | . 439 37 Lost Part 50 | . 20 30 Squads Dispatched 2 | . 2 . Investigation 1 | . 1 . Extermination . | . . . Reinforcement 1 | . 1 . Assault . | . . . Garrison . | . . . Intercept . | . . . Searches Triggered . | . . . Construction Impeded . | . . . Haulers Reinforced . | . . . Active Scanning Responses . | . . . Cargo Convoy Interrupts . | . . . Stealth | -11 -10 -10 --------- Run | Yrd Mat Sub Distress Signals . | . . . Communications Jammed . | . . . Distress Signals . | . . . Times Spotted 49 | . 28 21 Peak Tracking Total 4 | . 4 4 Tactical Retreats 5 | . 2 3 Traps | -11 -10 -10 ------- Run | Yrd Mat Sub Traps Triggered 1 | . 1 . Indirectly . | . . . Trap Hack Attempts . | . . . Triggered . | . . . Disarmed . | . . . Reprogrammed . | . . . Reused . | . . . Traps Extracted . | . . . Installed . | . . . Triggered . | . . . Machines | -11 -10 -10 ---------- Run | Yrd Mat Sub Machines Disabled 4 | . . 4 Max in Single Turn 2 | . . 2 Machines Repaired . | . . . Machines Dismantled . | . . . Machines Sabotaged . | . . . Overloaded Fab Kills . | . . . Hacking | -11 -10 -10 --------- Run | Yrd Mat Sub Machines Accessed 4 | . 4 . Terminals 4 | . 4 . Fabricators . | . . . Repair Stations . | . . . Recycling Units . | . . . Scanalyzers . | . . . Garrison Access . | . . . Total Hacks 8 | . 8 . Successful 3 | . 3 . Failed 5 | . 5 . Catastrophic 1 | . 1 . Database Lockouts . | . . . Manual 8 | . 8 . Terminals 8 | . 8 . Fabricators . | . . . Repair Stations . | . . . Recycling Units . | . . . Scanalyzers . | . . . Garrison Access . | . . . Terminal Hacks 3 | . 3 . Part Schematic 1 | . 1 . Zone Layout 2 | . 2 . Fabricator Hacks . | . . . Repair Station Hacks . | . . . Recycling Unit Hacks . | . . . Scanalyzer . | . . . Garrison Access Hacks . | . . . Unauthorized Hacks . | . . . Terminals . | . . . Fabricators . | . . . Repair Stations . | . . . Recycling Units . | . . . Scanalyzers . | . . . Garrison Access . | . . . Data Cores Recovered . | . . . Used . | . . . Hacking Detections 1 | . 1 . Full Trace Events 1 | . 1 . Feedback Events . | . . . Feedback Blocked . | . . . Robot Schematics Acquired . | . . . Robots Built . | . . . Authchips . | . . . Time . | . . . Total Robot Build Rating . | . . . Part Schematics Acquired 1 | . 1 . Parts Built . | . . . Authchips . | . . . Time . | . . . Total Part Build Rating . | . . . Part Studies Acquired . | . . . Parts Repaired . | . . . Time . | . . . Parts Recycled . | . . . Recycled Matter . | . . . Retrieved Matter . | . . . Retrieved Components . | . . . Parts Scanalyzed . | . . . Part Schematics Acquired . | . . . Parts Damaged . | . . . Bothacking | -11 -10 -10 ------------ Run | Yrd Mat Sub Used RIF Installer . | . . . Robots Hacked . | . . . Non-combat . | . . . Combat . | . . . Robot Hacks Applied . | . . . Relay Couplers Released . | . . . Fabnet Peak Effective % . | . . . Robots Rewired . | . . . Allies Hacked . | . . . Hacks Repelled . | . . . Allies | -11 -10 -10 -------- Run | Yrd Mat Sub Total Allies . | . . . Largest Group . | . . . Highest-Rated Group . | . . . Highest-Rated Ally . | . . . Total Orders . | . . . Ally Attacks . | . . . Total Damage . | . . . Kills . | . . . Allies Corrupted . | . . . Allies Melted . | . . . Intel | -11 -10 -10 ------- Run | Yrd Mat Sub Active Infowar (turns) . | . . . Robot Analysis Total . | . . . Derelict Logs Recovered 1 | . . 1 Drone Launches . | . . . Drone Recoveries . | . . . Exploration | -11 -10 -10 ------------- Run | Yrd Mat Sub Turns Passed 3258 | 59 1765 1434 Spaces Moved 1395 | 34 774 587 Core 11 | 4 7 . Treads 637 | 30 326 281 Legs . | . . . Wheels 747 | . 441 306 Hover . | . . . Flight . | . . . Fastest Speed 50 | 50 105 135 Average Speed 186 | 148 159 223 Slowest Speed 1500 | 160 1500 320 Overloaded Moves . | . . . Propulsion Burnouts . | . . . Robots Hopped . | . . . Potential Cave-ins . | . . . Cave-ins Triggered . | . . . Exploration Rate (%) 42 | 3 90 33 Regions Visited 2 Branch Regions 1 Pre-discovered Areas . | . . . Known Exits Taken . | . . . Unknown Exits Taken 2 | 1 1 . Scrap Searched . | . . . Spaces Dug . | . . . Terrain Destroyed 173 | . 17 156 Melee . | . . . Projectile . | . . . AOE 173 | . 17 156 Terrain Rammed . | . . . Walls Destroyed . | . . . Machines Disabled . | . . . Actions | -11 -10 -10 --------- Run | Yrd Mat Sub Total 1845 | 40 1152 653 Wait 219 | . 219 . Move 1393 | 33 773 587 Hop . | . . . Pick Up 46 | 1 38 7 Fast Attach 14 | 6 8 . Attach 5 | . 1 4 Detach . | . . . Swap 14 | . 10 4 Drop 27 | . 22 5 Fire 112 | . 80 32 Melee 15 | . 1 14 Ram . | . . . Kick . | . . . Crush . | . . . Escape Stasis . | . . . Rewire . | . . . Trap . | . . . Miscellaneous . | . . . Route ------- -11/Scrapyard -10/Materials (discovered 5 exits: [*Mat x3] / [*Min] / [*Sub]) -10/Subcaves (discovered 1 exit: [*Rec]) History --------- Turn | Location | Event 4 | -11/Scrapyard | Discovered new exit (range 15) 60 | -11/Scrapyard | Entered Materials 306 | -10/Materials | Build established: Mutant 492 | -10/Materials | Discovered new exit (range 12) 783 | -10/Materials | Discovered new exit (range 13) 1258 | -10/Materials | Discovered new exit (range 8) 1528 | -10/Materials | Discovered new exit (range 16) 1696 | -10/Materials | Discovered new exit (range 8) 1825 | -10/Materials | Entered Subcaves 1885 | -10/Subcaves | Ambushed by swarm of Subdwellers 1890 | -10/Subcaves | Ambushed by Subdwellers from Twisted Machinery 1930 | -10/Subcaves | Learned Materials trap positions 2004 | -10/Subcaves | Core integrity fell below 50% 2361 | -10/Subcaves | Shifting Twisted Machinery released Flamer 2362 | -10/Subcaves | Shifting Twisted Machinery released Sub. Monowheel 2485 | -10/Subcaves | Shifting Twisted Machinery released Flamer 2509 | -10/Subcaves | Shifting Twisted Machinery released Mak. System Restoration Module 3145 | -10/Subcaves | Discovered new exit (range 14) 3255 | -10/Subcaves | Core integrity fell below 20% 3259 | -10/Subcaves | Destroyed by CS-PEK(R) with Subdweller Beam Cannon Last Messages --------------- 03146_ Subatomizers dissect the Disposable Heat Sink. 03151_ Acquired 12 matter. 03156_ Subatomizers dissect the Sub. Power Source. 03164_ The unstable cave ceiling collapses. 03169_ Subatomizers dissect the Sub. Power Source. 03183_ Acquired Sub. Power Source. 03187_ Dropped EM Pulse Gun. 03188_ Acquired Sub. Monowheel. 03193_ Subatomizers dissect the Disposable Heat Sink. 03218_ Subatomizers dissect the EM Pulse Gun. 03250_ Sub. Shrapnel Launcher destroyed. 03250_ Destroyed Sub. Shrapnel Launcher. 03254_ Subatomizers dissect the Disposable Heat Sink. 03255_ 8N-LBF(R) destroyed. 03255_ 67-QQX(R) destroyed. Map ----- +----------------------------------------------------+ | ?????????????????????????????????????????????????? | | ?????????????????????????????????????????????????? | | ?????????????????????????????????????????????????? | | ?????????????????????????????????????????????????? | | ?????????????????????????????????????????????????? | | ?????????????????????????????????????????????????? | | ?????????????????????????????????????????????????? | | ?????????????????????????????????????????????????? | | ?????????????????????????????????????????????????? | | ?????????????????????????????????????????????????? | | ?????????????????????????????????????????????????? | | ?????????????????????????????????????????????????? | | ?????????????????????????????????????????????????? | | ?????????????????????????????????????????????????? | | ?????????????????????????????????????????????????? | | ?????????????????????????????????????????????????? | | ?????????????#???????????????????????????????????? | | ????????????? ???????????????""#????????????????? | | ?????????????? #??????????###"""###?? ??????????? | | ???????????? %? ?########"""""" ??????????? | | ????????????? ? #;;;;;; " "] ??????????? | | ##????????????? # ! ! ?????????? | | #???????????????#; =%R ?????????? | | #???????????????# #??????????? | | #???????????????# ????????????? | | #???????????????# @ ;;;#??????????????????? | | #??#####???????# ; ##??????????????????? | | #??# ##??????## ;; & #??????????????????? | | ##??# ##??????### & ; #####??????????????? | | #???# #????????# ! # # ####???????????? | | #??## #????????# ; ##??????????? | | ??## ##???????# * ; ##?????????? | | ### #??###### #?????????? | | ####### #?????????? | | #?## " ;# ###???? ????? | | ### " ;; "#?????[ ???? | | ## ## ""; ##???? ??? | | ## ### "" #### #????#" ?? | | ##?## " ##?# #??? ?? | | ##??## "" "#?# ??#" #? | | ## #???##"" " " # $### ? | | ### #???##" """ """" # ###? ] ? | | ?# #??## """""""""" ## #??? ? | | ?### ##?## """""""""" #?####< #####???? #? | | ???## #??# """"" """"?#?????####????????# #? | | ???## ##?## """"" ""#??????#####??###??## #? | | #### #??# """""""#????????#" "#?# ##?# ## | | # ##??# "##???????##" !"## #### | | #???# ## ##????????"" "" ##"" | | ##??# ##### ##?????????# "" ##""" # | +----------------------------------------------------+ Best States ------------- Heat Dissipation 35 Energy Generation 14 Energy Capacity 280 Matter Stores 300 Matter Capacity 300 Sight Range 16 Terrain Scan Density 10 Evasion (%) 40 Recoil Reduction 2 Item Schematics ----------------- Huge Storage Unit | -10/Materials | Hacked Robot Schematics ------------------ None Fabricated ------------ Nothing Repaired ---------- Nothing Studied --------- None Alien Tech Used ----------------- None Achievements -------------- None Challenges ------------ None Game ------ Seed TransportCoreShockpuncher Manual? 0 Play Time 00:12:13 Cumulative 637.9 hours Start 2026.09.17 @ 19:23:19 End 2026.09.17 @ 19:36:51 Sessions 1 Manual Loads 0 Difficulty Rogue Special Mode None Game No. 510 Rogue 510 Adventurer 0 Explorer 0 Win Type - Total 22 Types 13/0/4/1/0/0/0/2/0/2 Lore% 70 Gallery% 74 Achievement% 71 Wizard Run 0 Options --------- Layout 1 ASCII 0 Keyboard 0 Movement Mouse Keybinds 0 Fullscreen 2 Font 24/Cog Map View 50x35 Zoom Use 40% Tactical HUD 1 Map Filters NONE Filters NONE Steam 1 RUN: 797afb02-12ed-4f57-8899-3f7ac6a19f65